fUST/lending_fUST_20250220
["ID","MTS","AMOUNT","RATE_DAILY","PERIOD"]
[353700355,1739993451735,-500.0,0.00014273,2]
[353700356,1739993451746,-508.73,0.00014273,2]
[353700357,1739993451756,-500.0,0.00014273,2]
[353700358,1739993451765,-500.0,0.00014273,2]
[353700359,1739993451774,-500.0,0.00014273,2]
[353700360,1739993451941,-503.7232288,0.00014273,2]
[353700361,1739993451953,-345.85,0.00014273,2]
[353700362,1739993451962,-500.0,0.00014273,2]
[353700363,1739993451971,-578.16,0.00014273,2]
[353700364,1739993451980,-458.44,0.00014273,2]
[353700365,1739993451989,-500.0,0.00014273,2]
[353700366,1739993451999,-691.97,0.00014273,2]
[353700367,1739993452009,-500.0,0.00014273,2]
[353700368,1739993452019,-1104.41,0.00014273,2]
[353700369,1739993452028,-3005.91,0.00014273,2]
[353700370,1739993452038,-1060.38,0.00014273,2]
[353700371,1739993452048,-8839.34,0.00014273,2]
[353700372,1739993452057,-500.0,0.00014273,2]
[353700373,1739993452066,-500.0,0.00014273,2]
[353700374,1739993452076,-1056.78,0.00014273,2]
[353700375,1739993452086,-722.94,0.00014273,2]
[353700376,1739993452095,-500.0,0.00014273,2]
[353700377,1739993452104,-1113.6,0.00014273,2]
[353700378,1739993452114,-500.0,0.00014273,2]
[353700379,1739993452123,-500.0,0.00014273,2]
[353700380,1739993452132,-500.0,0.00014273,2]
[353700381,1739993452142,-500.0,0.00014273,2]
[353700382,1739993452153,-500.0,0.00014273,2]
[353700383,1739993452163,-732.67,0.00014273,2]
[353700384,1739993452173,-764.39,0.00014273,2]
[353700385,1739993452182,-500.0,0.00014273,2]
[353700386,1739993452192,-1945.72,0.00014273,2]
[353700387,1739993452201,-500.0,0.00014273,2]
[353700388,1739993452211,-500.0,0.00014273,2]
[353700389,1739993452221,-1096.96,0.00014273,2]
[353700390,1739993452231,-500.0,0.00014273,2]
[353700391,1739993452245,-939.03,0.00014273,2]
[353700392,1739993452254,-500.0,0.00014273,2]
[353700393,1739993452263,-2183.99,0.00014273,2]
[353700394,1739993452272,-500.0,0.00014273,2]
[353700395,1739993452282,-500.0,0.00014273,2]
[353700396,1739993452291,-5846.13,0.00014273,2]
[353700397,1739993452300,-2082.11,0.00014273,2]
[353700398,1739993452310,-8474.38,0.00014273,2]
[353700399,1739993452320,-1201.82,0.00014273,2]
[353700400,1739993452331,-565.8,0.00014273,2]
[353700401,1739993452341,-500.0,0.00014273,2]
[353700402,1739993452350,-1256.69,0.00014273,2]
[353700403,1739993452360,-500.0,0.00014273,2]
[353700404,1739993452370,-1193.06,0.00014273,2]
[353700405,1739993452380,-764.21,0.00014273,2]
[353700406,1739993452390,-1647.02,0.00014273,2]
[353700407,1739993452400,-2276.69,0.00014273,2]
[353700408,1739993452411,-3082.34,0.00014273,2]
[353700409,1739993452421,-619.22,0.00014273,2]
[353700410,1739993452432,-500.0,0.00014273,2]
[353700411,1739993452442,-500.0,0.00014273,2]
[353700412,1739993452454,-361.45,0.00014273,2]
[353700413,1739993452463,-23157.7,0.00014273,2]
[353700414,1739993452474,-359.91900794,0.00014273,2]
[353700415,1739993452483,-910.45,0.00014273,2]
[353700416,1739993452493,-500.0,0.00014273,2]
[353700417,1739993452503,-1000.0,0.00014321,2]
[353700418,1739993452513,-500.3801526,0.00014321,2]
[353700419,1739993452524,-1623.222034,0.00014321,2]
[353700420,1739993452534,-1623.222034,0.00014321,2]
[353700421,1739993452544,-151.0,0.00014321,2]
[353700422,1739993452554,-506.261334,0.00014356,2]
[353700423,1739993452564,-500.0,0.00014356,2]
[353700424,1739993452573,-500.0,0.00014356,2]
[353700425,1739993452582,-500.0,0.00014356,2]
[353700426,1739993452592,-500.0,0.00014356,2]
[353700427,1739993452601,-500.0,0.00014356,2]
[353700428,1739993452610,-500.0,0.00014356,2]
[353700429,1739993452620,-500.0,0.00014356,2]
[353700430,1739993452629,-500.0,0.00014356,2]
[353700431,1739993452639,-611.96,0.00014356,2]
[353700432,1739993452648,-512.6,0.00014356,2]
[353700433,1739993452658,-500.0,0.00014356,2]
[353700434,1739993452667,-508.73,0.00014356,2]
[353700435,1739993452677,-500.0,0.00014356,2]
[353700436,1739993452687,-500.0,0.00014356,2]
[353700437,1739993452698,-500.0,0.00014356,2]
[353700438,1739993452708,-500.0,0.00014356,2]
[353700439,1739993452718,-578.16,0.00014356,2]
[353700440,1739993452728,-500.0,0.00014356,2]
[353700441,1739993452738,-691.97,0.00014356,2]
[353700442,1739993452748,-500.0,0.00014356,2]
[353700443,1739993452758,-1104.41,0.00014356,2]
[353700444,1739993452768,-3005.91,0.00014356,2]
[353700445,1739993452778,-1060.38,0.00014356,2]
[353700446,1739993452788,-8839.34,0.00014356,2]
[353700447,1739993452798,-500.0,0.00014356,2]
[353700448,1739993452807,-500.0,0.00014356,2]
[353700449,1739993452816,-1056.78,0.00014356,2]
[353700450,1739993452826,-722.94,0.00014356,2]
[353700451,1739993452835,-500.0,0.00014356,2]
[353700452,1739993452845,-1113.6,0.00014356,2]
[353700453,1739993452855,-500.0,0.00014356,2]
[353700454,1739993452864,-500.0,0.00014356,2]
[353700455,1739993452874,-500.0,0.00014356,2]
[353700456,1739993452883,-500.0,0.00014356,2]
[353700457,1739993452893,-500.0,0.00014356,2]
[353700458,1739993452903,-732.67,0.00014356,2]
[353700459,1739993452913,-764.39,0.00014356,2]
[353700460,1739993452923,-327.14,0.00014356,2]
[353700461,1739993452933,-1945.72,0.00014356,2]
[353700462,1739993452943,-481.39970288,0.00014356,2]
[353700463,1739993452953,-500.0,0.00014356,2]
[353700464,1739993452964,-1096.96,0.00014356,2]
[353700465,1739993452974,-500.0,0.00014356,2]
[353700466,1739993452984,-939.03,0.00014356,2]
[353700467,1739993452993,-229.907001,0.00014356,2]
[353700468,1739993453004,-229.907001,0.00014356,2]
[353700469,1739993453013,-569.04986233,0.00014356,2]
[353700470,1739993453023,-2183.99,0.00014356,2]
[353700471,1739993453033,-500.0,0.00014356,2]
[353700472,1739993453042,-500.0,0.00014356,2]
[353700473,1739993453052,-483.051078,0.00014356,2]
[353700474,1739993453062,-5846.13,0.00014356,2]
[353700475,1739993453072,-151.0,0.00014356,2]
[353700476,1739993453082,-483.051078,0.00014356,2]
[353700477,1739993453093,-2082.11,0.00014356,2]
[353700478,1739993453103,-8474.38,0.00014356,2]
[353700479,1739993453113,-1201.82,0.00014356,2]
[353700480,1739993453123,-565.8,0.00014356,2]
[353700481,1739993453132,-500.0,0.00014356,2]
[353700482,1739993453142,-1256.69,0.00014356,2]
[353700483,1739993453152,-500.0,0.00014356,2]
[353700484,1739993453161,-1193.06,0.00014356,2]
[353700485,1739993453171,-764.21,0.00014356,2]
[353700486,1739993453180,-1647.02,0.00014356,2]
[353700487,1739993453190,-2276.69,0.00014356,2]
[353700488,1739993453199,-3082.34,0.00014356,2]
[353700489,1739993453209,-619.22,0.00014356,2]
[353700490,1739993453219,-500.0,0.00014356,2]
[353700491,1739993453229,-500.0,0.00014356,2]
[353700492,1739993453242,-9025.878337,0.00014356,2]
[353700493,1739993453253,-9025.878337,0.00014356,2]
[353700494,1739993453262,-23157.7,0.00014356,2]
[353700495,1739993453272,-910.45,0.00014356,2]
[353700496,1739993453282,-500.0,0.00014356,2]
[353700497,1739993453292,-179.67658215,0.000144,2]
[353700498,1739993453301,-500.0,0.00014438,2]
[353700499,1739993453311,-500.0,0.00014438,2]
[353700500,1739993453323,-500.0,0.00014438,2]
[353700501,1739993453333,-500.0,0.00014438,2]
[353700502,1739993453342,-500.0,0.00014438,2]
[353700503,1739993453352,-500.0,0.00014438,2]
[353700504,1739993453361,-500.0,0.00014438,2]
[353700505,1739993453370,-500.0,0.00014438,2]
[353700506,1739993453380,-207.33024915,0.00014438,2]
[353700507,1739993453390,-512.6,0.00014438,2]
[353700508,1739993453400,-151.0,0.00014438,2]
[353700509,1739993453412,-789.616638,0.00014438,2]
[353700510,1739993453422,-789.616638,0.00014438,2]
[353700511,1739993453431,-500.0,0.00014438,2]
[353700512,1739993453441,-500.0,0.00014438,2]
[353700513,1739993453450,-500.0,0.00014438,2]
[353700514,1739993453460,-500.0,0.00014438,2]
[353700515,1739993453470,-500.0,0.00014438,2]
[353700516,1739993453480,-500.0,0.00014438,2]
[353700517,1739993453489,-500.0,0.00014438,2]
[353700518,1739993453499,-500.0,0.00014438,2]
[353700519,1739993453508,-500.0,0.00014438,2]
[353700520,1739993453518,-500.0,0.00014438,2]
[353700521,1739993453529,-500.0,0.00014438,2]
[353700522,1739993453538,-500.0,0.00014438,2]
[353700523,1739993453547,-500.0,0.00014438,2]
[353700524,1739993453557,-500.0,0.00014438,2]
[353700525,1739993453567,-500.0,0.00014438,2]
[353700526,1739993453576,-500.0,0.00014438,2]
[353700527,1739993453586,-500.0,0.00014438,2]
[353700528,1739993453596,-500.0,0.00014438,2]
[353700529,1739993453606,-500.0,0.00014438,2]
[353700530,1739993453616,-500.0,0.00014438,2]
[353700531,1739993453625,-500.0,0.00014438,2]
[353700532,1739993453635,-500.0,0.00014438,2]
[353700533,1739993453644,-500.0,0.00014438,2]
[353700534,1739993453654,-500.0,0.00014438,2]
[353700535,1739993453664,-500.0,0.00014438,2]
[353700536,1739993453673,-603.554545,0.00014438,2]
[353700537,1739993453684,-461.97191629,0.00014438,2]
[353700538,1739993453693,-508.73,0.00014438,2]
[353700539,1739993453703,-151.0,0.00014438,2]
[353700540,1739993453713,-1339.774645,0.00014438,2]
[353700541,1739993453722,-1339.774645,0.00014438,2]
[353700542,1739993453732,-500.0,0.00014438,2]
[353700543,1739993453742,-4752.4458,0.00014438,2]
[353700544,1739993453751,-500.0,0.00014438,2]
[353700545,1739993453761,-4752.4458,0.00014438,2]
[353700546,1739993453771,-500.0,0.00014438,2]
[353700547,1739993453780,-500.0,0.00014438,2]
[353700548,1739993453790,-578.16,0.00014438,2]
[353700549,1739993453800,-500.0,0.00014438,2]
[353700550,1739993453810,-691.97,0.00014438,2]
[353700551,1739993453819,-500.0,0.00014438,2]
[353700552,1739993453829,-1104.41,0.00014438,2]
[353700553,1739993453839,-3005.91,0.00014438,2]
[353700554,1739993453848,-1060.38,0.00014438,2]
[353700555,1739993453858,-500.0,0.00014438,2]
[353700556,1739993453867,-8839.34,0.00014438,2]
[353700557,1739993453876,-500.0,0.00014438,2]
[353700558,1739993453885,-500.0,0.00014438,2]
[353700559,1739993453893,-1056.78,0.00014438,2]
[353700560,1739993453900,-722.94,0.00014438,2]
[353700561,1739993453909,-672.359079,0.00014438,2]
[353700562,1739993453917,-500.0,0.00014438,2]
[353700563,1739993453924,-1113.6,0.00014438,2]
[353700564,1739993453931,-672.359079,0.00014438,2]
[353700565,1739993453939,-633.75026402,0.00014438,2]
[353700566,1739993453947,-363.40429969,0.00014438,2]
[353700567,1739993453955,-691.309199,0.00014438,2]
[353700568,1739993453963,-691.309199,0.00014438,2]
[353700569,1739993453970,-1442.621722,0.00014438,2]
[353700570,1739993453978,-1442.621722,0.00014438,2]
[353700571,1739993453988,-500.0,0.00014438,2]
[353700572,1739993453996,-500.0,0.00014438,2]
[353700573,1739993454082,-500.0,0.00014438,2]
[353700574,1739993454093,-732.67,0.00014438,2]
[353700575,1739993454103,-764.39,0.00014438,2]
[353700576,1739993454113,-1945.72,0.00014438,2]
[353700577,1739993454122,-151.0,0.00014438,2]
[353700578,1739993454132,-500.0,0.00014438,2]
[353700579,1739993454141,-1096.96,0.00014438,2]
[353700580,1739993454151,-500.0,0.00014438,2]
[353700581,1739993454161,-939.03,0.00014438,2]
[353700582,1739993454170,-2183.99,0.00014438,2]
[353700583,1739993454180,-500.0,0.00014438,2]
[353700584,1739993454189,-5846.13,0.00014438,2]
[353700585,1739993454199,-2082.11,0.00014438,2]
[353700586,1739993454209,-8474.38,0.00014438,2]
[353700587,1739993454218,-1201.82,0.00014438,2]
[353700588,1739993454227,-565.8,0.00014438,2]
[353700589,1739993454238,-500.0,0.00014438,2]
[353700590,1739993454248,-1256.69,0.00014438,2]
[353700591,1739993454258,-500.0,0.00014438,2]
[353700592,1739993454267,-1193.06,0.00014438,2]
[353700593,1739993454274,-764.21,0.00014438,2]
[353700594,1739993454283,-1647.02,0.00014438,2]
[353700595,1739993454291,-2276.69,0.00014438,2]
[353700596,1739993454300,-3082.34,0.00014438,2]
[353700597,1739993454308,-619.22,0.00014438,2]
[353700598,1739993454317,-500.0,0.00014438,2]
[353700599,1739993454324,-500.0,0.00014438,2]
[353700600,1739993454332,-23157.7,0.00014438,2]
[353700601,1739993454339,-910.45,0.00014438,2]
[353700602,1739993454347,-700.0,0.00014438,2]
[353700603,1739993454357,-7438.69753278,0.00014439,2]
[353700604,1739993454367,-245.0,0.00014477,2]
[353700605,1739993454376,-569.92789718,0.000145,2]
[353700606,1739993454386,-151.0,0.000145,2]
[353700607,1739993454395,-224392.04207809,0.000145,2]
[353700608,1739993454405,-1623.222034,0.000145,2]
[353700609,1739993454414,-1623.222034,0.000145,2]
[353700610,1739993454424,-151.0,0.000145,2]
[353700611,1739993454433,-500.0,0.0001452,2]
[353700612,1739993454442,-500.0,0.0001452,2]
[353700613,1739993454451,-500.0,0.0001452,2]
[353700614,1739993454460,-500.0,0.0001452,2]
[353700615,1739993454469,-337.50101426,0.0001452,2]
[353700616,1739993454479,-500.0,0.0001452,2]
[353700617,1739993454487,-500.0,0.0001452,2]
[353700618,1739993454496,-512.6,0.0001452,2]
[353700619,1739993454505,-508.73,0.0001452,2]
[353700620,1739993454513,-500.0,0.0001452,2]
[353700621,1739993454523,-500.0,0.0001452,2]
[353700622,1739993454532,-151.0,0.0001452,2]
[353700623,1739993454542,-195.228862,0.0001452,2]
[353700624,1739993454552,-500.0,0.0001452,2]
[353700625,1739993454561,-578.16,0.0001452,2]
[353700626,1739993454570,-253.65845176,0.0001452,2]
[353700627,1739993454579,-691.97,0.0001452,2]
[353700628,1739993454588,-500.0,0.0001452,2]
[353700629,1739993454598,-1104.41,0.0001452,2]
[353700630,1739993454607,-3005.91,0.0001452,2]
[353700631,1739993454617,-1060.38,0.0001452,2]
[353700632,1739993454626,-8839.34,0.0001452,2]
[353700633,1739993454635,-500.0,0.0001452,2]
[353700634,1739993454644,-399.35108214,0.0001452,2]
[353700635,1739993454652,-1056.78,0.0001452,2]
[353700636,1739993454662,-722.94,0.0001452,2]
[353700637,1739993454672,-450.0,0.0001452,2]
[353700638,1739993454681,-500.0,0.0001452,2]
[353700639,1739993454691,-218.184773,0.0001452,2]
[353700640,1739993454700,-450.0,0.0001452,2]
[353700641,1739993454709,-1113.6,0.0001452,2]
[353700642,1739993454718,-218.184773,0.0001452,2]
[353700643,1739993454726,-576.863411,0.0001452,2]
[353700644,1739993454736,-576.863411,0.0001452,2]
[353700645,1739993454745,-279.25486826,0.0001452,2]
[353700646,1739993454754,-500.0,0.0001452,2]
[353700647,1739993454763,-500.0,0.0001452,2]
[353700648,1739993454772,-732.67,0.0001452,2]
[353700649,1739993454781,-764.39,0.0001452,2]
[353700650,1739993454790,-1945.72,0.0001452,2]
[353700651,1739993454800,-1062.816669,0.0001452,2]
[353700652,1739993454809,-500.0,0.0001452,2]
[353700653,1739993454818,-1096.96,0.0001452,2]
[353700654,1739993454828,-1062.816669,0.0001452,2]
[353700655,1739993454837,-500.0,0.0001452,2]
[353700656,1739993454846,-939.03,0.0001452,2]
[353700657,1739993454855,-229.907001,0.0001452,2]
[353700658,1739993454865,-229.907001,0.0001452,2]
[353700659,1739993454874,-2183.99,0.0001452,2]
[353700660,1739993454882,-483.051078,0.0001452,2]
[353700661,1739993454892,-5846.13,0.0001452,2]
[353700662,1739993454902,-152.184441,0.0001452,2]
[353700663,1739993454912,-483.051078,0.0001452,2]
[353700664,1739993454922,-2082.11,0.0001452,2]
[353700665,1739993454931,-8474.38,0.0001452,2]
[353700666,1739993454940,-1201.82,0.0001452,2]
[353700667,1739993454949,-565.8,0.0001452,2]
[353700668,1739993454958,-500.0,0.0001452,2]
[353700669,1739993454967,-1256.69,0.0001452,2]
[353700670,1739993454975,-500.0,0.0001452,2]
[353700671,1739993454985,-1193.06,0.0001452,2]
[353700672,1739993454994,-764.21,0.0001452,2]
[353700673,1739993455003,-1647.02,0.0001452,2]
[353700674,1739993455012,-2276.69,0.0001452,2]
[353700675,1739993455022,-3082.34,0.0001452,2]
[353700676,1739993455031,-619.22,0.0001452,2]
[353700677,1739993455038,-500.0,0.0001452,2]
[353700678,1739993455047,-9025.878337,0.0001452,2]
[353700679,1739993455056,-500.0,0.0001452,2]
[353700680,1739993455065,-9025.878337,0.0001452,2]
[353700681,1739993455074,-23157.7,0.0001452,2]
[353700682,1739993455083,-910.45,0.0001452,2]
[353700683,1739993455093,-1000.95075043,0.00014521,2]
[353700684,1739993455102,-500.0,0.00014521,2]
[353700685,1739993455112,-1000.0,0.00014521,2]
[353700686,1739993455121,-1001.30101814,0.00014521,2]
[353700687,1739993455130,-500.0,0.00014602,2]
[353700688,1739993455139,-500.0,0.00014602,2]
[353700689,1739993455148,-500.0,0.00014602,2]
[353700690,1739993455158,-500.0,0.00014602,2]
[353700691,1739993455168,-500.0,0.00014602,2]
[353700692,1739993455176,-500.0,0.00014602,2]
[353700693,1739993455185,-512.6,0.00014602,2]
[353700694,1739993455194,-364.184848,0.00014602,2]
[353700695,1739993455203,-364.184848,0.00014602,2]
[353700696,1739993455212,-151.0,0.00014602,2]
[353700697,1739993455221,-508.73,0.00014602,2]
[353700698,1739993455230,-500.0,0.00014602,2]
[353700699,1739993455242,-500.0,0.00014602,2]
[353700700,1739993455251,-578.16,0.00014602,2]
[353700701,1739993455261,-691.97,0.00014602,2]
[353700702,1739993455270,-500.0,0.00014602,2]
[353700703,1739993455279,-1104.41,0.00014602,2]
[353700704,1739993455288,-3005.91,0.00014602,2]
[353700705,1739993455297,-1060.38,0.00014602,2]
[353700706,1739993455307,-8839.34,0.00014602,2]
[353700707,1739993455317,-500.0,0.00014602,2]
[353700708,1739993455328,-1056.78,0.00014602,2]
[353700709,1739993455338,-722.94,0.00014602,2]
[353700710,1739993455348,-500.0,0.00014602,2]
[353700711,1739993455357,-1113.6,0.00014602,2]
[353700712,1739993455366,-1049.066856,0.00014602,2]
[353700713,1739993455375,-1049.066856,0.00014602,2]
[353700714,1739993455384,-1442.621722,0.00014602,2]
[353700715,1739993455394,-1442.621722,0.00014602,2]
[353700716,1739993455406,-325.42518195,0.00014602,2]
[353700717,1739993455415,-500.0,0.00014602,2]
[353700718,1739993455426,-732.67,0.00014602,2]
[353700719,1739993455436,-764.39,0.00014602,2]
[353700720,1739993455445,-1945.72,0.00014602,2]
[353700721,1739993455455,-151.0,0.00014602,2]
[353700722,1739993455464,-159.63,0.00014602,2]
[353700723,1739993455474,-1096.96,0.00014602,2]
[353700724,1739993455484,-286.16828603,0.00014602,2]
[353700725,1739993455493,-939.03,0.00014602,2]
[353700726,1739993455503,-2183.99,0.00014602,2]
[353700727,1739993455512,-5846.13,0.00014602,2]
[353700728,1739993455522,-2082.11,0.00014602,2]
[353700729,1739993455531,-8474.38,0.00014602,2]
[353700730,1739993455540,-1201.82,0.00014602,2]
[353700731,1739993455550,-565.8,0.00014602,2]
[353700732,1739993455560,-500.0,0.00014602,2]
[353700733,1739993455570,-1256.69,0.00014602,2]
[353700734,1739993455580,-423.99428323,0.00014602,2]
[353700735,1739993455590,-1193.06,0.00014602,2]
[353700736,1739993455599,-764.21,0.00014602,2]
[353700737,1739993455610,-1647.02,0.00014602,2]
[353700738,1739993455619,-2276.69,0.00014602,2]
[353700739,1739993455628,-3082.34,0.00014602,2]
[353700740,1739993455638,-619.22,0.00014602,2]
[353700741,1739993455647,-500.0,0.00014602,2]
[353700742,1739993455658,-500.0,0.00014602,2]
[353700743,1739993455668,-23157.7,0.00014602,2]
[353700744,1739993455677,-910.45,0.00014602,2]
[353700745,1739993455686,-500.0,0.00014684,2]
[353700746,1739993455695,-500.0,0.00014684,2]
[353700747,1739993455705,-500.0,0.00014684,2]
[353700748,1739993455715,-500.0,0.00014684,2]
[353700749,1739993455724,-500.0,0.00014684,2]
[353700750,1739993455733,-500.0,0.00014684,2]
[353700751,1739993455743,-512.6,0.00014684,2]
[353700752,1739993455755,-508.73,0.00014684,2]
[353700753,1739993455765,-500.0,0.00014684,2]
[353700754,1739993455775,-500.0,0.00014684,2]
[353700755,1739993455784,-578.16,0.00014684,2]
[353700756,1739993455794,-691.97,0.00014684,2]
[353700757,1739993455804,-500.0,0.00014684,2]
[353700758,1739993455814,-1104.41,0.00014684,2]
[353700759,1739993455824,-3005.91,0.00014684,2]
[353700760,1739993455834,-1060.38,0.00014684,2]
[353700761,1739993455844,-8839.34,0.00014684,2]
[353700762,1739993455853,-500.0,0.00014684,2]
[353700763,1739993455863,-1056.78,0.00014684,2]
[353700764,1739993455872,-722.94,0.00014684,2]
[353700765,1739993455882,-500.0,0.00014684,2]
[353700766,1739993455891,-1113.6,0.00014684,2]
[353700767,1739993455901,-500.0,0.00014684,2]
[353700768,1739993455913,-732.67,0.00014684,2]
[353700769,1739993455923,-764.39,0.00014684,2]
[353700770,1739993455933,-1945.72,0.00014684,2]
[353700771,1739993455943,-1096.96,0.00014684,2]
[353700772,1739993455953,-939.03,0.00014684,2]
[353700773,1739993455963,-2183.99,0.00014684,2]
[353700774,1739993455973,-5846.13,0.00014684,2]
[353700775,1739993455983,-2082.11,0.00014684,2]
[353700776,1739993455992,-8474.38,0.00014684,2]
[353700777,1739993456002,-1201.82,0.00014684,2]
[353700778,1739993456011,-565.8,0.00014684,2]
[353700779,1739993456020,-500.0,0.00014684,2]
[353700780,1739993456029,-1256.69,0.00014684,2]
[353700781,1739993456039,-1193.06,0.00014684,2]
[353700782,1739993456049,-764.21,0.00014684,2]
[353700783,1739993456058,-1647.02,0.00014684,2]
[353700784,1739993456068,-1623.222034,0.00014684,2]
[353700785,1739993456077,-1623.222034,0.00014684,2]
[353700786,1739993456087,-2276.69,0.00014684,2]
[353700787,1739993456097,-3082.34,0.00014684,2]
[353700788,1739993456107,-619.22,0.00014684,2]
[353700789,1739993456117,-500.0,0.00014684,2]
[353700790,1739993456127,-151.0,0.00014684,2]
[353700791,1739993456136,-500.0,0.00014684,2]
[353700792,1739993456145,-23157.7,0.00014684,2]
[353700793,1739993456155,-910.45,0.00014684,2]
[353700794,1739993456164,-229.907001,0.00014716,2]
[353700795,1739993456174,-229.907001,0.00014716,2]
[353700796,1739993456183,-483.051078,0.00014716,2]
[353700797,1739993456192,-483.051078,0.00014716,2]
[353700798,1739993456286,-9025.878337,0.00014716,2]
[353700799,1739993456296,-9025.878337,0.00014716,2]
[353700800,1739993456306,-13275.53870192,0.00014721,2]
[353700801,1739993456316,-847.27,0.0001475,2]
[353700802,1739993456325,-169.481,0.0001475,2]
[353700803,1739993456334,-280.21144668,0.00014752,2]
[353700804,1739993456344,-500.0,0.00014767,2]
[353700805,1739993456353,-500.0,0.00014767,2]
[353700806,1739993456362,-500.0,0.00014767,2]
[353700807,1739993456372,-500.0,0.00014767,2]
[353700808,1739993456381,-500.0,0.00014767,2]
[353700809,1739993456391,-500.0,0.00014767,2]
[353700810,1739993456400,-512.6,0.00014767,2]
[353700811,1739993456410,-508.73,0.00014767,2]
[353700812,1739993456420,-151.0,0.00014767,2]
[353700813,1739993456429,-1339.774645,0.00014767,2]
[353700814,1739993456438,-1339.774645,0.00014767,2]
[353700815,1739993456447,-500.0,0.00014767,2]
[353700816,1739993456457,-4752.4458,0.00014767,2]
[353700817,1739993456466,-4752.4458,0.00014767,2]
[353700818,1739993456475,-500.0,0.00014767,2]
[353700819,1739993456484,-578.16,0.00014767,2]
[353700820,1739993456492,-691.97,0.00014767,2]
[353700821,1739993456502,-500.0,0.00014767,2]
[353700822,1739993456511,-1104.41,0.00014767,2]
[353700823,1739993456520,-3005.91,0.00014767,2]
[353700824,1739993456530,-1060.38,0.00014767,2]
[353700825,1739993456539,-8839.34,0.00014767,2]
[353700826,1739993456548,-1056.78,0.00014767,2]
[353700827,1739993456557,-722.94,0.00014767,2]
[353700828,1739993456567,-672.359079,0.00014767,2]
[353700829,1739993456576,-500.0,0.00014767,2]
[353700830,1739993456585,-218.184773,0.00014767,2]
[353700831,1739993456595,-672.359079,0.00014767,2]
[353700832,1739993456605,-1113.6,0.00014767,2]
[353700833,1739993456614,-218.184773,0.00014767,2]
[353700834,1739993456623,-576.863411,0.00014767,2]
[353700835,1739993456633,-691.309199,0.00014767,2]
[353700836,1739993456642,-576.863411,0.00014767,2]
[353700837,1739993456651,-691.309199,0.00014767,2]
[353700838,1739993456662,-500.0,0.00014767,2]
[353700839,1739993456672,-732.67,0.00014767,2]
[353700840,1739993456683,-764.39,0.00014767,2]
[353700841,1739993456692,-1945.72,0.00014767,2]
[353700842,1739993456701,-1062.816669,0.00014767,2]
[353700843,1739993456710,-1096.96,0.00014767,2]
[353700844,1739993456719,-1062.816669,0.00014767,2]
[353700845,1739993456727,-939.03,0.00014767,2]
[353700846,1739993456737,-2183.99,0.00014767,2]
[353700847,1739993456746,-5846.13,0.00014767,2]
[353700848,1739993456756,-2082.11,0.00014767,2]
[353700849,1739993456766,-8474.38,0.00014767,2]
[353700850,1739993456775,-1201.82,0.00014767,2]
[353700851,1739993456784,-565.8,0.00014767,2]
[353700852,1739993456794,-229.2,0.00014767,2]
[353700853,1739993456804,-1256.69,0.00014767,2]
[353700854,1739993456814,-1193.06,0.00014767,2]